bitfinex/quotes_SOLUSD_20251125
["timestamp","ask_amount","ask_price","bid_price","bid_amount"]
[1764093968045,0.69,137.21,137.16,35.41450585]
[1764093968245,6.63686223,137.22,137.17,7.31686223]
[1764093968556,0.69,137.21,137.17,7.31686223]
[1764093968958,0.69,137.21,137.18,7.28969237]
[1764093969670,6.63686223,137.22,137.18,25.5139233]
[1764093969867,10.58686223,137.24,137.19,7.31686223]
[1764093970381,0.69,137.29,137.23,6.63686223]
[1764093970677,6.63686223,137.28,137.23,6.63686223]
[1764093971039,7.32686223,137.28,137.24,7.28650539]
[1764093971374,3.26,137.3,137.24,26.18276887]
[1764093971530,7.32686223,137.28,137.24,25.50276887]
[1764093971736,7.32686223,137.28,137.24,25.16544787]
[1764093971935,7.32686223,137.28,137.24,25.84544787]
[1764093972154,0.69,137.28,137.24,25.84544787]
[1764093972672,7.32686223,137.28,137.24,25.16544787]
[1764093973738,0.69,137.28,137.24,31.8023101]
[1764093974358,7.32686223,137.28,137.24,6.63686223]
[1764093975140,0.69,137.28,137.24,68.43686223]
[1764093975371,43.32513793,137.32,137.27,6.63686223]
[1764093975372,0.69,137.31,137.27,6.63686223]
[1764093975742,0.69,137.31,137.28,6.63686223]
[1764093975960,0.69,137.31,137.26,3.26]
[1764093976258,6.63686223,137.3,137.25,6.63686223]
[1764093976680,7.32686223,137.29,137.24,35.3996311]
[1764093977159,0.69,137.29,137.25,6.63686223]
[1764093977353,0.69,137.28,137.26,7.28544368]
[1764093978133,0.69,137.28,137.25,6.63686223]
[1764093978339,7.32686223,137.28,137.25,7.28582698]
[1764093978539,6.63686223,137.28,137.25,7.28582698]
[1764093978841,0.69,137.27,137.25,7.28582698]
[1764093979041,7.32686223,137.27,137.24,7.28636275]
[1764093979456,7.32686223,137.27,137.23,18.21705727]
[1764093979457,0.69,137.26,137.23,32.14095586]
[1764093979644,0.69,137.28,137.23,32.14095586]
[1764093979848,0.69,137.27,137.24,6.63686223]
[1764093980043,7.32686223,137.27,137.23,7.28703636]
[1764093980251,7.32686223,137.27,137.2,34.52931265]
[1764093980252,6.63686223,137.25,137.21,7.28809853]
[1764093980451,6.63686223,137.24,137.2,7.28852158]
[1764093980841,0.69,137.23,137.2,7.28852158]
[1764093981045,7.32686223,137.23,137.2,7.28852158]
[1764093981450,0.69,137.22,137.19,7.28916101]
[1764093983169,7.32686223,137.22,137.19,7.28916101]
[1764093983462,7.35686223,137.25,137.2,7.32686223]
[1764093983855,6.63686223,137.23,137.16,42.51650762]
[1764093984059,9.52994492,137.24,137.16,42.51650762]
[1764093984060,6.63686223,137.22,137.17,6.63686223]
[1764093984254,6.63686223,137.24,137.19,6.63686223]
[1764093984655,7.35686223,137.24,137.19,7.32686223]
[1764093984853,0.72,137.23,137.19,7.32686223]
[1764093985051,0.72,137.23,137.19,10.58686223]
[1764093985348,7.35686223,137.25,137.21,7.28809853]
[1764093985541,0.72,137.24,137.21,7.28809853]
[1764093985770,7.35686223,137.24,137.21,7.28809853]
[1764093986157,0.72,137.23,137.21,7.28809853]
[1764093986344,7.35686223,137.24,137.21,7.28809853]
[1764093986745,7.35686223,137.23,137.21,7.28809853]
[1764093987044,6.63686223,137.22,137.2,7.28859811]
[1764093987251,7.35686223,137.22,137.18,25.51310551]
[1764093987447,7.35686223,137.21,137.18,7.28969237]
[1764093987861,7.35686223,137.2,137.17,10.55004179]
[1764093988063,0.72,137.19,137.17,7.29004179]
[1764093989269,6.63686223,137.2,137.17,7.29004179]
[1764093989452,7.35686223,137.2,137.16,25.51711326]
[1764093989776,7.35686223,137.2,137.16,26.20711326]
[1764093989968,0.72,137.2,137.16,32.84397549]
[1764093990665,7.35686223,137.23,137.18,6.63686223]
[1764093990867,6.63686223,137.24,137.19,6.63686223]
[1764093991046,7.35686223,137.24,137.19,6.63686223]
[1764093991247,0.72,137.23,137.19,7.32686223]
[1764093991575,0.72,137.23,137.2,7.28862973]
[1764093991865,0.72,137.25,137.2,26.20020407]
[1764093992068,0.72,137.24,137.2,32.8370663]
[1764093992259,6.63686223,137.23,137.2,7.28862973]
[1764093992772,7.35686223,137.23,137.2,7.28862973]
[1764093992975,0.72,137.23,137.2,7.28862973]
[1764093993372,0.72,137.23,137.2,18.22157434]
[1764093993871,19.3554319,137.26,137.22,6.63686223]
[1764093993872,6.63686223,137.26,137.22,6.63686223]
[1764093994049,6.63686223,137.28,137.24,6.63686223]
[1764093994251,7.35686223,137.29,137.24,6.63686223]
[1764093994472,0.72,137.28,137.24,7.32686223]
[1764093994674,7.35686223,137.28,137.22,62.49]
[1764093994990,7.35686223,137.28,137.23,7.32686223]
[1764093995277,0.72,137.28,137.24,6.63686223]
[1764093995469,0.72,137.28,137.25,13.92283672]
[1764093995667,3.26,137.3,137.25,32.13777296]
[1764093995850,23.59176077,137.31,137.27,6.63686223]
[1764093995851,0.72,137.31,137.27,6.63686223]
[1764093996273,0.72,137.33,137.29,6.63686223]
[1764093996451,3.98,137.35,137.3,6.63686223]
[1764093996654,10.61686223,137.35,137.3,6.63686223]
[1764093996852,0.72,137.34,137.28,3.26]
[1764093997274,6.63686223,137.33,137.28,10.58686223]
[1764093997488,0.72,137.34,137.29,25.49348095]
[1764093997661,0.72,137.34,137.29,32.82034318]
[1764093997861,6.63686223,137.35,137.3,7.32686223]
[1764093998263,7.48019498,137.36,137.29,25.49348095]
[1764093998477,6.63686223,137.31,137.28,7.28435394]
[1764093998780,0.72,137.34,137.28,13.92121617]
[1764093999208,6.63686223,137.33,137.28,13.92121617]
[1764093999500,6.63686223,137.32,137.28,32.13217188]
[1764093999864,7.35686223,137.32,137.28,7.28435394]
[1764094000181,6.63686223,137.32,137.28,7.28435394]
[1764094000378,7.35686223,137.31,137.27,10.54480176]
[1764094000577,6.63686223,137.3,137.27,7.28480176]
[1764094000777,7.35686223,137.3,137.27,7.28480176]
[1764094001378,6.63686223,137.31,137.27,7.28480176]
[1764094002069,0.72,137.3,137.27,7.28480176]
[1764094003259,0.72,137.32,137.27,26.18708412]
[1764094003462,0.72,137.32,137.27,32.13394635]
[1764094003663,0.72,137.32,137.28,7.32686223]
[1764094003893,6.63686223,137.33,137.29,6.63686223]
[1764094004199,0.72,137.34,137.29,7.32686223]
[1764094004200,7.35686223,137.34,137.29,7.32686223]
[1764094004393,0.2,137.36,137.3,0.69]
[1764094004567,11.54254466,137.33,137.29,11.54254466]
[1764094004967,11.54254466,137.32,137.28,14.80254466]
[1764094005274,0.72,137.32,137.29,7.2838517]
[1764094005480,7.28151379,137.34,137.29,7.2838517]
[1764094005785,0.72,137.34,137.29,19.51639636]
[1764094005986,11.54254466,137.35,137.3,12.23254466]
[1764094006502,11.54254466,137.35,137.31,0.69]
[1764094006701,15.72254466,137.36,137.31,12.23254466]
[1764094007009,12.26254466,137.35,137.31,12.23254466]
[1764094007185,12.26254466,137.35,137.31,11.54254466]
[1764094007376,12.26254466,137.35,137.32,7.28226041]
[1764094007571,3.46,137.36,137.32,25.48791144]
[1764094007784,3.46,137.36,137.32,37.7204561]
[1764094008671,4.18,137.36,137.32,37.7204561]
[1764094009194,3.46,137.36,137.33,0.69]
[1764094009497,4.18,137.36,137.32,37.7204561]
[1764094009698,0.2,137.36,137.33,0.69]
[1764094009883,0.2,137.36,137.33,12.23254466]
[1764094011374,0.2,137.36,137.34,7.28119994]
[1764094012189,0.2,137.36,137.35,12.23254466]
[1764094012527,3.26,137.42,137.35,12.23254466]
[1764094012676,0.2,137.44,137.4,11.54254466]
[1764094012871,0.92,137.44,137.4,12.23254466]
[1764094013115,0.2,137.44,137.4,0.69]
[1764094013280,0.2,137.44,137.41,12.22254466]
[1764094013482,12.41254466,137.44,137.39,11.54254466]
[1764094013677,12.41254466,137.44,137.39,37.69747005]
[1764094013887,0.87,137.44,137.4,12.22254466]
[1764094014089,0.67,137.43,137.39,37.01747005]
[1764094014389,11.54254466,137.42,137.39,7.27855011]
[1764094014604,11.54254466,137.41,137.37,7.27935738]
[1764094015085,12.21254466,137.41,137.37,7.27935738]
[1764094015794,12.21254466,137.41,137.37,7.95935738]
[1764094016416,11.54254466,137.4,137.37,7.27935738]
[1764094016589,12.21254466,137.4,137.37,7.27935738]
[1764094017614,16.08637655,137.43,137.37,25.47838191]
[1764094017814,16.08637655,137.43,137.37,37.02092657]
[1764094017815,7.94643163,137.43,137.37,37.02092657]
[1764094017996,11.54254466,137.41,137.37,37.02092657]
[1764094018319,11.54254466,137.41,137.37,25.47838191]
[1764094018509,12.21254466,137.41,137.37,26.15838191]
[1764094018705,11.54254466,137.41,137.37,7.27935738]
[1764094018912,11.54254466,137.38,137.34,7.28119994]
[1764094019116,11.54254466,137.38,137.34,69.08119994]
[1764094019416,11.54254466,137.38,137.34,99.50674445]
[1764094019615,12.21254466,137.38,137.34,99.50674445]
[1764094019832,11.54254466,137.38,137.34,99.50674445]
[1764094020004,11.54254466,137.38,137.34,98.82674445]
[1764094020203,0.67,137.4,137.35,12.22254466]
[1764094020400,11.54254466,137.38,137.34,87.28419979]
[1764094020592,11.54254466,137.39,137.34,98.82674445]
[1764094020821,12.21254466,137.39,137.34,98.82674445]
[1764094021096,11.54254466,137.36,137.34,61.8]
[1764094021639,11.54254466,137.39,137.35,0.68]
[1764094022123,11.54254466,137.38,137.35,0.68]
[1764094022329,12.21254466,137.4,137.35,74.02254466]
[1764094022829,12.21254466,137.42,137.38,7.27907992]
[1764094023130,12.21254466,137.42,137.38,25.47677973]
[1764094023313,12.41254466,137.44,137.39,12.22254466]
[1764094023514,11.54254466,137.43,137.39,0.68]
[1764094023709,12.21254466,137.43,137.39,0.68]
[1764094023908,0.67,137.42,137.38,37.01932439]
[1764094024211,11.74254466,137.44,137.4,11.54254466]
[1764094024730,0.2,137.44,137.4,11.54254466]
[1764094024903,0.2,137.44,137.42,7.27696114]
[1764094025417,0.87,137.44,137.42,7.27696114]
[1764094025745,0.2,137.44,137.42,7.27696114]
[1764094025945,16.308864,137.4,137.34,3.26]
[1764094026106,11.54254466,137.37,137.34,3.26]
[1764094026501,11.54254466,137.37,137.33,26.16574098]
[1764094027444,11.54254466,137.36,137.33,25.48574098]
[1764094027635,11.54254466,137.36,137.33,26.16574098]
[1764094027829,11.54254466,137.36,137.33,25.48574098]
[1764094028005,11.54254466,137.36,137.3,8.80994492]
[1764094028006,11.54254466,137.34,137.3,0.68]
[1764094028213,11.54254466,137.34,137.3,3.94]
[1764094028413,11.54254466,137.33,137.3,3.94]
[1764094028829,12.21254466,137.33,137.29,18.20922461]
[1764094029112,11.54254466,137.33,137.29,26.17307631]
[1764094030022,14.80254466,137.35,137.3,12.22254466]
[1764094030350,11.54254466,137.34,137.3,0.68]
[1764094031136,11.54254466,137.34,137.31,7.28279076]
[1764094031726,11.54254466,137.33,137.31,7.28279076]
[1764094031921,11.54254466,137.32,137.29,7.28346062]
[1764094032122,11.54254466,137.31,137.29,7.28346062]
[1764094032443,11.54254466,137.33,137.29,7.96346062]
[1764094032638,11.54254466,137.32,137.29,7.28346062]
[1764094032837,16.308864,137.34,137.29,7.28346062]
[1764094033036,11.54254466,137.32,137.29,7.96346062]
[1764094033225,11.54254466,137.32,137.27,37.03902729]
[1764094033556,11.54254466,137.32,137.28,0.68]
[1764094033855,24.26026557,137.34,137.28,0.68]
[1764094033856,11.54254466,137.34,137.28,0.68]
[1764094034032,3.93,137.35,137.29,11.54254466]
[1764094034212,0.67,137.38,137.31,11.54254466]
[1764094034416,12.21254466,137.38,137.33,11.54254466]
[1764094034713,11.54254466,137.37,137.32,3.26]
[1764094035054,11.54254466,137.36,137.32,3.26]
[1764094035226,0.67,137.37,137.33,7.28173013]
[1764094035550,16.978864,137.37,137.3,26.17162417]
[1764094035848,11.54254466,137.32,137.28,0.68]
[1764094036021,11.54254466,137.33,137.28,12.22254466]
[1764094036223,11.54254466,137.34,137.3,11.54254466]
[1764094036433,11.54254466,137.34,137.29,12.22254466]
[1764094036861,11.54254466,137.34,137.3,0.68]
[1764094037174,11.54254466,137.34,137.31,7.28279076]
[1764094037537,0.67,137.36,137.32,0.68]
[1764094037757,12.21254466,137.36,137.32,0.68]
[1764094038137,11.54254466,137.35,137.31,25.48976767]
[1764094038359,11.54254466,137.34,137.31,25.48976767]
[1764094038564,11.54254466,137.34,137.31,26.16976767]
[1764094038767,11.54254466,137.35,137.31,26.16976767]
[1764094039271,12.21254466,137.35,137.31,26.16976767]
[1764094039467,11.54254466,137.35,137.31,26.16976767]
[1764094040356,11.54254466,137.35,137.31,87.96976767]
[1764094041445,11.54254466,137.32,137.29,61.8]
[1764094041644,11.54254466,137.3,137.26,80.69304673]
[1764094041848,11.54254466,137.3,137.27,7.28491294]
[1764094042155,11.54254466,137.31,137.27,7.96491294]
[1764094042334,11.54254466,137.28,137.24,3.80332025]
[1764094042529,11.54254466,137.25,137.21,7.28809853]
[1764094042764,3.93,137.29,137.22,11.54254466]
[1764094042960,3.93,137.29,137.22,12.22254466]
[1764094043169,3.93,137.29,137.23,12.23254466]
[1764094043170,0.67,137.29,137.23,12.23254466]
[1764094043345,11.54254466,137.28,137.23,12.23254466]
[1764094043544,11.54254466,137.28,137.24,25.50276887]
[1764094043758,11.54254466,137.29,137.24,40.99531353]
[1764094043949,11.54254466,137.29,137.25,12.23254466]
[1764094044151,11.54254466,137.29,137.25,0.69]
[1764094045242,11.54254466,137.29,137.26,7.28544368]
[1764094045544,16.308864,137.3,137.26,7.28544368]
[1764094045545,11.54254466,137.3,137.26,25.49905288]
[1764094045750,11.54254466,137.3,137.26,26.18905288]
[1764094045955,11.54254466,137.31,137.27,0.69]
[1764094046460,11.54254466,137.31,137.27,12.23254466]
[1764094046788,11.54254466,137.35,137.3,11.54254466]
[1764094046944,28.53140866,137.36,137.31,11.54254466]
[1764094047146,27.85140866,137.36,137.32,37.7204561]
[1764094047647,11.54254466,137.34,137.32,7.28226041]
[1764094047876,16.308864,137.36,137.32,7.97226041]
[1764094048050,16.308864,137.36,137.32,19.51480507]
[1764094048240,11.54254466,137.37,137.32,25.48791144]
[1764094048547,11.54254466,137.35,137.32,25.48791144]
[1764094049865,12.22254466,137.36,137.32,25.48791144]
[1764094050165,12.22254466,137.36,137.32,26.17791144]
[1764094050361,11.54254466,137.35,137.32,25.48791144]
[1764094051766,12.22254466,137.35,137.32,7.28226041]
[1764094052160,11.54254466,137.35,137.32,7.28226041]
[1764094052353,11.54254466,137.36,137.32,69.08226041]
[1764094052670,0.68,137.37,137.32,87.28791144]
[1764094052868,0.68,137.37,137.33,0.69]
[1764094053077,16.308864,137.39,137.33,15.49254466]
[1764094053078,0.68,137.39,137.33,15.49254466]
[1764094053383,0.68,137.39,137.34,7.28119994]
[1764094053673,11.54254466,137.38,137.34,19.5137446]
[1764094053981,11.54254466,137.39,137.35,0.69]
[1764094054151,11.54254466,137.37,137.34,7.28119994]
[1764094054666,0.68,137.36,137.34,7.28119994]
[1764094054865,23.58694038,137.4,137.34,25.48419979]
[1764094055092,11.54254466,137.37,137.34,25.48419979]
[1764094055359,11.54254466,137.38,137.34,18.20299985]
[1764094055565,12.22254466,137.38,137.34,18.20299985]
[1764094055767,11.54254466,137.38,137.34,18.89299985]
[1764094055967,11.54254466,137.39,137.34,33.69554451]
[1764094056154,11.54254466,137.38,137.34,22.15299985]
[1764094056476,11.54254466,137.38,137.34,21.46299985]
[1764094056771,11.54254466,137.38,137.34,33.69554451]
[1764094056983,0.68,137.39,137.34,33.00554451]
[1764094056984,11.54254466,137.39,137.34,33.00554451]
[1764094057152,12.22254466,137.39,137.34,33.69554451]
[1764094057596,12.22254466,137.39,137.34,40.28674445]
[1764094057886,12.22254466,137.39,137.34,40.97674445]
[1764094058252,12.22254466,137.39,137.34,102.77674445]
[1764094059183,11.54254466,137.38,137.34,102.77674445]
[1764094059514,0.68,137.38,137.34,90.54419979]
[1764094059706,11.54254466,137.37,137.34,90.54419979]
[1764094060274,0.68,137.38,137.34,29.43419979]
[1764094060613,0.68,137.41,137.36,11.54254466]
[1764094060781,11.54254466,137.4,137.35,74.03254466]
[1764094061180,11.54254466,137.4,137.36,0.69]
[1764094061502,12.22254466,137.4,137.36,0.69]
[1764094062013,11.54254466,137.38,137.36,7.28013977]
[1764094062184,11.54254466,137.37,137.33,3.26]
[1764094062627,11.54254466,137.37,137.33,3.95]
[1764094063497,11.54254466,137.37,137.34,25.48343306]
[1764094063699,12.22254466,137.36,137.34,7.28119994]
[1764094066684,7.30687527,137.36,137.34,7.28119994]
[1764094066885,6.62687527,137.35,137.33,7.28168316]
[1764094067111,6.62687527,137.36,137.33,87.2860085]
[1764094067406,7.30687527,137.37,137.33,87.2860085]
[1764094067613,6.62687527,137.37,137.33,93.91288377]
[1764094067808,3.94,137.39,137.34,0.69]
[1764094068000,16.308864,137.4,137.35,13.90754509]
[1764094068308,6.62687527,137.39,137.35,25.48234437]
[1764094068479,7.30687527,137.39,137.35,25.48234437]
[1764094068682,7.30687527,137.38,137.35,25.48234437]
[1764094069704,6.62687527,137.39,137.35,26.17234437]
[1764094069909,6.62687527,137.39,137.35,32.79921964]
[1764094070813,3.94,137.41,137.36,7.31687527]
[1764094071008,3.94,137.41,137.35,25.48234437]
[1764094071009,0.68,137.39,137.35,32.79921964]
[1764094072323,7.30687527,137.39,137.35,32.79921964]
[1764094072797,7.30687527,137.39,137.35,36.03921964]
[1764094072992,7.30687527,137.39,137.35,97.83921964]
[1764094073590,7.30687527,137.39,137.35,91.21234437]
[1764094074615,3.46209473,137.39,137.35,91.21234437]
[1764094075319,3.50209473,137.4,137.35,94.0244391]
[1764094075513,3.50209473,137.4,137.36,0.72]
[1764094075816,23.05095873,137.42,137.37,2.78209473]
[1764094076018,23.05095873,137.42,137.37,61.8]
[1764094076209,3.50209473,137.41,137.37,62.52]
[1764094076511,6.62319651,137.4,137.37,61.8]
[1764094076717,7.34319651,137.4,137.37,61.8]
[1764094076904,7.34319651,137.4,137.38,7.27907992]
[1764094077493,7.34319651,137.39,137.37,61.8]
[1764094077711,6.62319651,137.38,137.37,61.8]
[1764094077997,7.34319651,137.38,137.37,69.07960981]
[1764094078217,10.58319651,137.39,137.37,69.07960981]
[1764094078405,7.34319651,137.39,137.37,69.07960981]
[1764094078724,0.72,137.38,137.37,69.07960981]
[1764094079801,7.34319651,137.38,137.37,69.07960981]
[1764094080314,6.62319651,137.39,137.37,69.07960981]
[1764094080520,10.55319651,137.4,137.37,69.07960981]
[1764094080695,6.62319651,137.38,137.35,0.69]
[1764094081020,7.31319651,137.4,137.35,7.31319651]
[1764094081317,6.62319651,137.39,137.35,0.69]
[1764094081820,6.62319651,137.39,137.34,25.48419979]
[1764094082114,7.2780294,137.4,137.34,25.48419979]
[1764094082115,7.31319651,137.38,137.34,26.17419979]
[1764094082896,6.62319651,137.39,137.35,0.69]
[1764094083098,7.31319651,137.39,137.36,7.28013977]
[1764094083620,16.308864,137.36,137.29,0.69]
[1764094083826,16.308864,137.36,137.29,7.2838517]
[1764094083827,6.62319651,137.32,137.29,7.2838517]
[1764094084005,6.62319651,137.3,137.26,6.62319651]
[1764094084318,7.31319651,137.32,137.27,7.31319651]
[1764094085209,6.62319651,137.31,137.28,25.49533799]
[1764094087027,6.62319651,137.29,137.28,7.28438228]
[1764094087223,6.62319651,137.29,137.26,18.21296711]
[1764094087432,6.62319651,137.27,137.21,0.69]
[1764094087600,0.69,137.28,137.22,25.50580845]
[1764094087803,6.62319651,137.27,137.22,32.12900496]
[1764094088025,0.69,137.28,137.23,6.62319651]
[1764094088327,6.62319651,137.27,137.23,6.62319651]
[1764094088511,6.62319651,137.27,137.23,0.69]
[1764094088715,7.31319651,137.26,137.22,25.50580845]
[1764094089226,6.62319651,137.24,137.2,18.32111892]
[1764094089415,6.62319651,137.24,137.2,21.56111892]
[1764094089611,0.69,137.24,137.2,32.92294516]
[1764094089928,22.93206051,137.24,137.2,0.1]
[1764094090226,23.62206051,137.24,137.2,0.1]
[1764094090522,7.31319651,137.24,137.2,0.1]
[1764094090739,6.62319651,137.24,137.2,0.1]
[1764094090911,7.31319651,137.24,137.2,0.1]
[1764094091116,6.62319651,137.24,137.2,0.1]
[1764094091316,0.69,137.23,137.2,0.1]
[1764094091514,6.62319651,137.24,137.2,0.1]
[1764094091825,7.31319651,137.24,137.2,0.1]
[1764094092420,6.62319651,137.21,137.2,0.1]
[1764094092669,9.88319651,137.21,137.2,0.1]
[1764094092812,10.57319651,137.21,137.2,0.1]
[1764094093947,26.67123996,137.21,137.2,0.1]
[1764094094946,26.67123996,137.21,137.17,0.1]
[1764094094947,25.11880892,137.18,137.17,0.1]
[1764094095118,35.00200543,137.18,137.17,0.1]
[1764094095431,7.31319651,137.18,137.17,0.1]
[1764094095613,3.26,137.19,137.17,0.1]
[1764094096015,3.95,137.19,137.17,0.1]
[1764094096330,10.57319651,137.19,137.17,0.1]
[1764094097524,9.88319651,137.19,137.17,0.1]
[1764094097720,22.93206051,137.21,137.17,7.41319651]
[1764094098022,23.62206051,137.21,137.17,7.41319651]
[1764094098538,23.62206051,137.21,137.17,0.79]
[1764094098742,9.88319651,137.22,137.17,7.41319651]
[1764094098939,7.31319651,137.22,137.17,7.41319651]
[1764094099141,10.57319651,137.22,137.17,7.41319651]
[1764094100331,10.57319651,137.22,137.18,7.28969237]
[1764094100672,7.31319651,137.22,137.18,7.28969237]
[1764094101029,6.62319651,137.21,137.18,7.28969237]
[1764094101229,6.62319651,137.19,137.17,0.1]
[1764094101629,7.31319651,137.18,137.17,0.1]
[1764094102550,22.93206051,137.19,137.17,0.1]
[1764094102731,10.57319651,137.2,137.17,0.1]
[1764094102932,7.31319651,137.19,137.17,0.1]
[1764094103142,6.62319651,137.18,137.17,0.1]
[1764094103351,7.34319651,137.18,137.17,0.1]
[1764094103654,10.5486406,137.2,137.17,0.1]
[1764094103655,7.34319651,137.19,137.17,0.1]
[1764094104160,0.72,137.19,137.17,0.1]
[1764094104997,3.26,137.21,137.17,6.72319651]
[1764094105291,10.60319651,137.23,137.18,6.62319651]
[1764094105464,0.72,137.22,137.17,0.1]
[1764094105652,7.34319651,137.22,137.17,6.72319651]
[1764094105858,3.26,137.22,137.19,6.62319651]
[1764094106767,3.26,137.22,137.19,7.30319651]
[1764094107161,3.26,137.22,137.2,7.28862973]
[1764094107365,3.26,137.22,137.2,69.08862973]
[1764094109973,3.98,137.22,137.2,69.08862973]
[1764094111490,0.72,137.21,137.2,61.8]
[1764094111695,7.34319651,137.21,137.19,61.8]
[1764094111869,0.72,137.21,137.19,69.08906413]
[1764094112074,7.34319651,137.21,137.19,69.08906413]
[1764094112376,9.88319651,137.22,137.19,69.08906413]
[1764094112694,10.60319651,137.22,137.19,69.08906413]
[1764094113190,0.72,137.22,137.19,87.31196667]
[1764094113484,9.88319651,137.23,137.19,87.99196667]
[1764094113692,3.98,137.23,137.19,94.61516318]
[1764094115996,22.93206051,137.24,137.19,93.93516318]
[1764094116173,10.60319651,137.26,137.2,0.68]
[1764094116368,10.60319651,137.26,137.21,6.62319651]
[1764094116576,3.98,137.26,137.22,6.62319651]
[1764094116779,22.93206051,137.28,137.23,6.62319651]
[1764094116986,26.91206051,137.28,137.24,0.68]
[1764094117377,6.62319651,137.27,137.24,0.68]
[1764094118299,6.62319651,137.27,137.25,7.28597449]
[1764094118480,3.98,137.28,137.25,7.28597449]
[1764094118682,7.34319651,137.27,137.25,7.28597449]
[1764094119597,9.88319651,137.28,137.25,7.28597449]
[1764094119781,3.26,137.28,137.25,7.96597449]
[1764094120096,3.26,137.28,137.25,26.18091073]
[1764094120589,3.98,137.28,137.25,25.50091073]
[1764094121172,3.26,137.28,137.25,25.50091073]
[1764094121372,3.26,137.28,137.26,0.68]
[1764094121892,10.58319651,137.31,137.26,7.30319651]
[1764094122084,10.58319651,137.31,137.26,69.10319651]
[1764094122290,6.62319651,137.28,137.26,61.8]
[1764094122602,2.78684827,137.28,137.26,69.08542654]
[1764094122803,3.50684827,137.27,137.26,61.8]
[1764094124106,3.50684827,137.27,137.22,7.2875674]
[1764094124288,3.50684827,137.26,137.22,7.2875674]
[1764094124597,7.35693271,137.26,137.22,7.2875674]
[1764094124897,6.63693271,137.26,137.22,7.2875674]
[1764094125103,3.26,137.26,137.23,7.31693271]
[1764094125618,7.35693271,137.28,137.23,69.11693271]
[1764094125810,0.72,137.27,137.23,69.11693271]
[1764094126198,0.72,137.29,137.24,0.68]
[1764094126489,7.35693271,137.29,137.25,7.28597449]
[1764094127000,6.63693271,137.29,137.26,0.68]
[1764094127305,6.63693271,137.29,137.25,32.81784344]
[1764094127306,0.72,137.29,137.25,32.81784344]
[1764094127484,22.94579671,137.3,137.25,32.13784344]
[1764094127809,23.66579671,137.3,137.26,0.68]
[1764094128302,17.028864,137.3,137.26,0.68]
[1764094128505,9.87693271,137.31,137.26,7.31693271]
[1764094128713,9.87693271,137.31,137.27,7.28491294]
[1764094128714,15.50673555,137.31,137.27,7.28491294]
[1764094129202,12.26673555,137.3,137.27,7.28491294]
[1764094129502,11.54673555,137.29,137.25,7.28597449]
[1764094129804,11.54673555,137.28,137.25,7.28597449]
[1764094130108,0.72,137.28,137.25,7.28597449]
[1764094132482,0.72,137.28,137.25,69.08597449]
[1764094133906,12.26673555,137.28,137.25,69.08597449]
[1764094134307,12.23673555,137.28,137.25,69.08597449]
[1764094135410,15.47673555,137.28,137.25,69.08597449]
[1764094135806,3.93,137.28,137.25,69.08597449]
[1764094136386,3.24,137.28,137.25,69.08597449]
[1764094136597,3.93,137.28,137.25,69.08597449]
[1764094138113,3.93,137.28,137.25,81.35271004]
[1764094138420,3.24,137.28,137.25,88.02091073]
[1764094138991,3.24,137.28,137.25,99.56764628]
[1764094139201,0.72,137.27,137.25,69.08597449]
[1764094140308,3.24,137.28,137.25,69.08597449]
[1764094140614,3.24,137.28,137.25,69.78597449]
[1764094140809,3.96,137.28,137.25,88.00091073]
[1764094141006,3.96,137.28,137.25,87.30091073]
[1764094141495,3.96,137.28,137.25,69.08597449]
[1764094142509,3.24,137.28,137.25,69.08597449]
[1764094142730,0.72,137.27,137.22,61.8]
[1764094142932,14.78673555,137.28,137.23,7.98679803]
[1764094143088,3.24,137.28,137.24,11.54673555]
[1764094143289,3.96,137.28,137.24,12.24673555]
[1764094143527,0.72,137.3,137.25,12.24673555]
[1764094143694,0.72,137.3,137.25,73.34673555]
[1764094143695,3.24,137.29,137.25,73.34673555]
[1764094143895,3.24,137.29,137.26,0.7]
[1764094144102,3.24,137.29,137.26,12.24673555]
[1764094144607,3.96,137.29,137.27,7.18091294]
[1764094145422,0.72,137.28,137.26,7.28519873]
[1764094147392,5.0726909,137.28,137.25,69.08571481]
[1764094147592,5.0726909,137.28,137.23,22.56940889]
[1764094147593,4.3526909,137.27,137.24,7.28627991]
[1764094147832,0.72,137.26,137.24,7.28627991]
[1764094147992,0.72,137.26,137.23,61.8]